bitfinex/quotes_ETHUSD_20250430
["timestamp","ask_amount","ask_price","bid_price","bid_amount"]
[1745976306450,4.50938661,1806.7,1806.6,3.73380307]
[1745976307155,4.19983504,1806.7,1806.6,3.73380307]
[1745976307363,4.50936691,1806.7,1806.6,3.73380307]
[1745976307753,4.50936691,1806.7,1806.5,5.53554807]
[1745976307959,4.19983504,1806.7,1806.4,9.26947596]
[1745976308451,4.19983504,1806.7,1806.4,3.73380307]
[1745976308452,0.751,1806.5,1806.4,3.73380307]
[1745976308654,8.26026659,1806.5,1806.4,3.73380307]
[1745976308829,9.83163399,1806.5,1806.4,3.73380307]
[1745976310517,10.25119173,1806.5,1806.4,3.73380307]
[1745976310857,11.31830925,1806.5,1806.4,3.73380307]
[1745976312371,0.7783,1806.4,1805.9,4.853944]
[1745976312545,5.07203197,1806.3,1805.9,4.853944]
[1745976312864,1.09673155,1806.2,1805.9,4.853944]
[1745976313674,0.7873,1806.2,1805.9,4.853944]
[1745976313877,1.3732332,1806.2,1805.9,4.853944]
[1745976315172,5.07203197,1806.3,1806.1,5.53675119]
[1745976315374,5.07203197,1806.3,1806.0,0.7644]
[1745976315375,5.07203197,1806.3,1806.0,6.3012864]
[1745976316874,5.07203197,1806.3,1805.9,6.31993725]
[1745976317176,5.83263197,1806.3,1806.0,5.53703569]
[1745976317342,5.83263197,1806.3,1806.0,5.53708835]
[1745976317537,5.83263197,1806.3,1805.9,11.85712001]
[1745976317841,5.83263197,1806.3,1805.9,6.31989314]
[1745976318379,5.83263197,1806.3,1805.9,11.85712074]
[1745976318677,5.83263197,1806.3,1805.9,6.31989314]
[1745976319079,5.83263197,1806.3,1805.9,5.53719314]
[1745976319786,6.41589517,1806.3,1805.9,5.53719314]
[1745976319979,5.65529517,1806.3,1805.8,5.53756494]
[1745976320157,0.8105,1806.2,1805.8,11.07510366]
[1745976320358,0.8105,1806.2,1805.8,5.53753872]
[1745976320558,0.8105,1806.2,1805.8,5.53750783]
[1745976320764,1.45707952,1806.2,1805.8,5.53750783]
[1745976323293,1.45707952,1806.2,1805.8,11.07501178]
[1745976323487,1.45707952,1806.2,1805.8,5.53750395]
[1745976324179,0.46603197,1806.1,1805.8,5.53750395]
[1745976325589,0.46603197,1806.1,1805.9,5.53724655]
[1745976326293,0.46603197,1806.1,1805.8,5.53750395]
[1745976327826,0.7651,1806.0,1805.6,6.36605389]
[1745976327988,0.46603197,1805.9,1805.7,5.53792851]
[1745976332123,0.46603197,1805.9,1805.6,6.36605389]
[1745976332336,0.8271,1805.8,1805.5,5.53849835]
[1745976332927,0.8271,1805.8,1805.5,5.53845252]
[1745976333290,0.8271,1805.8,1805.5,11.07686497]
[1745976333530,0.8271,1805.8,1805.5,5.53841245]
[1745976334974,5.86723197,1805.9,1805.4,0.8203]
[1745976335116,5.07303197,1805.9,1805.6,5.53802676]
[1745976335316,5.07303197,1805.9,1805.7,5.53796215]
[1745976337555,5.07303197,1805.9,1805.6,5.53802676]
[1745976338748,5.07303197,1805.9,1805.7,5.53783284]
[1745976339956,5.07303197,1805.9,1805.6,6.34702676]
[1745976340956,5.07303197,1805.9,1805.6,5.53802676]
[1745976341155,5.65975517,1805.9,1805.6,5.53802676]
[1745976341361,5.65975517,1805.9,1805.5,6.35635116]
[1745976341550,0.308995,1805.8,1805.5,11.89476448]
[1745976342057,0.308995,1805.8,1805.6,5.5382854]
[1745976342857,0.308995,1805.8,1805.3,2.3983674]
[1745976343023,0.8011,1805.7,1805.4,5.53878645]
[1745976343224,0.8011,1805.7,1805.4,11.0775729]
[1745976344163,0.8011,1805.7,1805.4,11.07752273]
[1745976345469,0.8011,1805.7,1805.4,5.53873628]
[1745976345625,0.8011,1805.7,1805.5,5.5385429]
[1745976346222,0.8011,1805.7,1805.4,11.07746565]
[1745976346429,0.8011,1805.7,1805.2,5.53945208]
[1745976346430,0.30897028,1805.6,1805.2,5.53945208]
[1745976346750,0.77500225,1805.6,1805.2,5.53945208]
[1745976347259,0.30897028,1805.5,1805.2,5.53945208]
[1745976349739,0.30897028,1805.5,1805.2,5.53936611]
[1745976349927,0.30897028,1805.5,1805.4,5.53893873]
[1745976351044,0.46603197,1805.6,1805.5,5.53863195]
[1745976351441,0.46603197,1805.6,1805.3,7.11061295]
[1745976351738,0.46603197,1805.6,1805.5,6.33533195]
[1745976352926,0.46603197,1805.6,1805.5,7.90669935]
[1745976353478,4.607,1805.9,1805.7,5.53780416]
[1745976355066,4.607,1805.9,1805.7,11.07559888]
[1745976355366,4.607,1805.9,1805.7,5.53779472]
[1745976356963,4.607,1805.9,1805.6,5.53815675]
[1745976358366,4.607,1805.9,1805.6,5.5381064]
[1745976358536,4.607,1805.9,1805.7,5.53789291]
[1745976359769,4.607,1805.9,1805.6,11.07623867]
[1745976359972,4.607,1805.9,1805.6,5.5381064]
[1745976360346,5.3872,1805.9,1805.6,5.5381064]
[1745976360547,5.92592,1805.9,1805.6,5.5381064]
[1745976361070,0.7802,1805.7,1805.5,5.5384869]
[1745976361283,0.7802,1805.7,1805.1,5.58969547]
[1745976361482,0.7802,1805.6,1805.1,5.58982557]
[1745976361637,0.30901911,1805.6,1805.1,0.05]
[1745976361835,5.3862,1805.5,1805.1,0.05]
[1745976362051,0.53862,1805.4,1805.1,0.05]
[1745976362265,0.7802,1805.3,1805.1,0.05]
[1745976363961,0.7802,1805.3,1805.1,5.58984591]
[1745976364268,1.00465197,1805.4,1805.1,5.58984591]
[1745976364473,0.46603197,1805.4,1805.3,5.53924555]
[1745976365990,5.4355,1805.9,1805.6,5.53818954]
[1745976366143,4.606,1805.9,1805.7,5.53781397]
[1745976366793,4.606,1805.9,1805.6,5.53813791]
[1745976366942,0.7789,1805.8,1805.4,5.53876127]
[1745976367141,0.7789,1805.8,1805.5,5.53859407]
[1745976367364,1.31739,1805.8,1805.5,5.53847552]
[1745976367569,4.606,1805.9,1805.6,5.53801861]
[1745976368969,4.606,1805.9,1805.7,5.53797585]
[1745976369587,4.606,1805.9,1805.7,5.53781587]
[1745976369760,4.606,1805.9,1805.8,5.53771181]
[1745976370362,4.606,1805.9,1805.6,6.35533858]
[1745976370569,4.91478127,1805.9,1805.7,5.53799234]
[1745976370770,4.606,1805.9,1805.7,5.53799234]
[1745976372767,0.8305,1805.8,1805.5,5.53853045]
[1745976373072,3.8305,1805.8,1805.2,5.53936071]
[1745976373275,0.8305,1805.6,1805.2,5.53936071]
[1745976373482,0.8305,1805.6,1805.2,11.07871668]
[1745976373685,0.8305,1805.6,1805.2,5.53935597]
[1745976373891,0.8305,1805.6,1805.3,5.53923866]
[1745976374106,0.8305,1805.6,1805.3,11.07829944]
[1745976374401,0.46603197,1805.7,1805.4,5.53878527]
[1745976374560,0.89254517,1805.7,1805.4,5.53878527]
[1745976375358,0.89254517,1805.7,1805.3,5.53902775]
[1745976375606,0.89254517,1805.7,1805.4,5.53893775]
[1745976378567,0.89254517,1805.7,1805.4,5.53874834]
[1745976379812,0.89254517,1805.7,1805.4,5.53873744]
[1745976380037,0.46603197,1805.7,1805.6,5.53832521]
[1745976381010,1.29393197,1805.7,1805.4,6.31661719]
[1745976381180,1.29393197,1805.7,1805.4,11.85538484]
[1745976381376,1.29393197,1805.7,1805.4,11.07748484]
[1745976382800,1.29393197,1805.7,1805.5,5.53860659]
[1745976383125,1.29393197,1805.7,1805.4,5.53871719]
[1745976383296,1.29393197,1805.7,1805.3,5.5390649]
[1745976383706,1.29393197,1805.7,1805.3,11.07814429]
[1745976384007,1.29393197,1805.7,1805.1,6.37102718]
[1745976384212,0.30878686,1805.6,1805.2,5.53945327]
[1745976386225,0.7818,1805.5,1805.1,5.58967565]
[1745976386525,0.8291,1805.3,1805.1,0.05]
[1745976386723,1.29513197,1805.3,1805.1,0.05]
[1745976387343,0.30878686,1805.2,1805.1,0.05]
[1745976387905,1.29513197,1805.3,1805.1,0.05]
[1745976388137,1.09848289,1805.2,1805.1,0.05]
[1745976388642,1.56451486,1805.2,1805.1,0.05]
[1745976391110,1.25583197,1805.2,1805.1,0.05]
[1745976391410,1.56399726,1805.2,1805.1,0.05]
[1745976394455,0.77419726,1805.2,1805.1,0.05]
[1745976395592,0.46603197,1805.2,1805.1,0.05]
[1745976397066,0.46603197,1805.2,1805.1,5.58985928]
[1745976398680,0.38837721,1805.2,1805.1,5.58985928]
[1745976400308,5.74987721,1805.6,1805.2,5.53944682]
[1745976400754,5.74987721,1805.6,1805.1,5.58985928]
[1745976400953,0.30813302,1805.5,1805.1,5.58985928]
[1745976401155,0.30813302,1805.5,1805.1,11.12951756]
[1745976401350,0.30813302,1805.5,1805.2,5.53952609]
[1745976401988,0.30813302,1805.5,1805.1,5.58965828]
[1745976402188,0.30813302,1805.5,1805.2,5.5394404]
[1745976403308,0.30813302,1805.5,1805.3,5.53910749]
[1745976403612,0.30813302,1805.5,1805.3,5.53907857]
[1745976404874,5.74987721,1805.6,1805.3,5.53907857]
[1745976405077,5.74987721,1805.6,1805.4,5.53891197]
[1745976405384,4.99437721,1805.6,1805.4,5.53873941]
[1745976409604,4.99437721,1805.6,1805.3,6.34986868]
[1745976410027,4.99437721,1805.6,1805.3,11.88892127]
[1745976410241,4.99437721,1805.6,1805.3,6.34985259]
[1745976410418,0.38837721,1805.6,1805.3,6.34985191]
[1745976410940,0.38837721,1805.6,1805.3,5.53905191]
[1745976411136,0.7757,1805.5,1805.2,5.53933204]
[1745976411342,0.7757,1805.5,1805.3,5.53921964]
[1745976413841,4.99437721,1805.6,1805.3,5.53921964]
[1745976414507,0.30875382,1805.5,1805.3,5.53921964]
[1745976415117,0.30875382,1805.5,1805.3,5.53904908]
[1745976415453,0.30875382,1805.5,1805.3,5.53903853]
[1745976420155,0.30875382,1805.5,1805.3,11.07809125]
[1745976420329,0.30875382,1805.5,1805.3,5.53903853]
[1745976423661,0.30875382,1805.4,1805.3,5.53903853]
[1745976423864,0.30875382,1805.4,1805.2,5.53942868]
[1745976424261,0.30875382,1805.4,1805.1,11.88346165]
[1745976424566,0.30875382,1805.3,1805.2,5.53946791]
[1745976425187,0.30875382,1805.5,1805.2,5.53946791]
[1745976426155,0.30875382,1805.4,1805.2,5.53946791]
[1745976427088,0.30875382,1805.3,1805.1,5.58967534]
[1745976427384,0.8304,1805.2,1805.1,0.05]
[1745976427681,5.4354,1805.2,1805.1,0.05]
[1745976427986,6.35740692,1805.2,1805.1,0.05]
[1745976432621,11.27555153,1805.2,1805.1,0.05]
[1745976432912,17.11255153,1805.2,1805.1,0.05]
[1745976456163,0.7637,1805.0,1804.5,0.7533]
[1745976456363,0.33837721,1804.9,1804.5,0.7533]
[1745976456569,4.606,1804.8,1804.5,0.7533]
[1745976456786,5.10043772,1804.8,1804.5,0.7533]
[1745976457090,0.30875382,1804.7,1804.5,0.7533]
[1745976457887,0.30875382,1804.6,1804.5,0.7533]
[1745976458995,0.30875382,1804.7,1804.5,0.7533]
[1745976459382,0.33837721,1804.6,1804.2,0.7603]
[1745976459584,0.30875382,1804.5,1804.2,6.30282492]
[1745976460208,4.91475382,1804.5,1804.2,6.30282492]
[1745976460718,0.30875382,1804.4,1804.2,0.7603]
[1745976460911,0.30875382,1804.4,1804.2,6.30291424]
[1745976461110,0.30875382,1804.4,1804.2,0.7603]
[1745976461111,0.30875382,1804.3,1804.2,0.7603]
[1745976465032,0.30875382,1804.4,1804.2,0.7603]
[1745976466189,0.30875382,1804.3,1804.2,0.7603]
[1745976467122,0.30875382,1804.4,1804.2,0.7603]
[1745976467991,0.30875382,1804.3,1804.2,0.7603]
[1745976469118,3.30875382,1804.4,1804.2,0.7603]
[1745976469322,4.1002292,1804.4,1804.2,0.7603]
[1745976469509,0.30875382,1804.3,1804.2,0.7603]
[1745976470718,0.64713103,1804.3,1804.2,0.7603]
[1745976479009,0.64713103,1804.3,1804.2,6.30292276]
[1745976479208,0.33837721,1804.3,1804.2,6.34172276]
[1745976482451,4.606,1804.5,1804.2,11.88434552]
[1745976483246,4.606,1804.5,1804.4,0.7625]
[1745976483543,4.606,1804.5,1804.4,6.30450842]
[1745976483748,4.606,1804.5,1804.4,0.7625]
[1745976483946,4.91551445,1804.5,1804.4,0.7625]
[1745976484663,4.91551445,1804.5,1804.3,0.7625]
[1745976485549,0.30951445,1804.4,1804.3,0.7625]
[1745976486929,0.30951445,1804.4,1804.3,6.30481557]
[1745976487645,0.30951445,1804.4,1804.3,0.7625]
[1745976492451,0.30951445,1804.4,1804.3,6.30481557]
[1745976497766,0.30951445,1804.4,1804.3,0.7625]
[1745976498976,0.30951445,1804.4,1804.1,7.16412843]
[1745976499282,0.30951445,1804.4,1804.1,6.37872318]
[1745976499932,0.30951445,1804.4,1804.2,5.54261897]
[1745976500574,0.30951445,1804.4,1804.2,11.0850401]
[1745976500785,0.30951445,1804.4,1804.3,5.54231557]
[1745976502376,0.30951445,1804.4,1804.1,6.3787784]
[1745976502576,0.30951445,1804.4,1804.2,5.54257408]
[1745976502758,4.604,1804.5,1804.2,5.54257408]
[1745976504684,0.30969824,1804.4,1804.2,11.08486819]
[1745976504988,0.30969824,1804.4,1804.2,5.54242826]
[1745976505667,0.30969824,1804.3,1804.2,5.54242826]
[1745976508955,0.30969824,1804.3,1804.2,6.40134835]
[1745976509161,4.604,1804.5,1804.4,6.34550842]
[1745976509458,4.604,1804.5,1804.4,5.54200842]
[1745976509790,4.91390996,1804.5,1804.2,6.34592009]
[1745976509956,0.30990996,1804.5,1804.2,6.34592009]
[1745976510159,0.30990996,1804.5,1804.2,11.88832357]
[1745976510453,0.30990996,1804.4,1804.2,11.88832357]
[1745976510647,0.30990996,1804.4,1804.2,6.34590348]
[1745976510840,5.73157721,1804.7,1804.3,3.73860325]
[1745976511042,0.57315772,1804.6,1804.3,3.73860325]
[1745976511746,0.30990283,1804.5,1804.3,3.73860325]
[1745976513071,0.30990283,1804.4,1804.3,3.73860325]
[1745976513271,0.30990283,1804.4,1804.1,9.33136391]
[1745976513473,0.30990283,1804.4,1804.1,9.33132178]
[1745976513647,0.30990283,1804.3,1804.2,5.54261832]
[1745976518474,0.30990283,1804.3,1804.1,5.59271853]
[1745976518678,5.411,1804.5,1804.1,5.59271853]
[1745976518879,0.5411,1804.4,1804.1,11.13543144]
[1745976519082,0.5411,1804.4,1804.1,5.59271291]
[1745976519278,0.5411,1804.4,1804.1,11.13544644]
[1745976519480,0.5411,1804.4,1804.1,5.59271291]
[1745976520292,0.30980559,1804.3,1804.1,11.13547492]
[1745976520850,0.30980559,1804.3,1804.2,5.54262276]
[1745976522561,0.30980559,1804.3,1804.1,11.13542846]
[1745976522767,0.30980559,1804.3,1804.1,11.13547074]
[1745976522957,0.30980559,1804.2,1804.1,5.59271291]
[1745976523789,0.30980559,1804.4,1804.1,5.59271291]
[1745976523996,0.88188615,1804.4,1804.1,5.59271291]
[1745976524493,0.88188615,1804.4,1804.1,0.05]
[1745976524960,0.30980559,1804.3,1804.1,0.05]
[1745976525162,0.30980559,1804.3,1804.1,5.59291107]
[1745976525458,0.30980559,1804.3,1804.1,9.33151432]
[1745976525664,0.30980559,1804.2,1804.1,9.33151432]
[1745976526292,0.30980559,1804.3,1804.1,9.33151432]
[1745976526893,0.30980559,1804.3,1804.1,14.87424412]
[1745976527196,0.30980559,1804.3,1804.2,5.54262276]
[1745976527358,0.91045777,1804.4,1804.1,14.87409017]
[1745976527687,0.91045777,1804.4,1804.1,9.33133305]
[1745976528291,0.30981057,1804.3,1804.1,9.33133305]
[1745976528679,0.30981057,1804.3,1804.2,5.54262276]
[1745976528878,0.91045777,1804.4,1804.2,5.54262276]
[1745976529889,0.30980851,1804.3,1804.1,5.5927298]
[1745976530393,0.30980851,1804.2,1804.1,0.05]
[1745976532569,0.30980851,1804.2,1804.1,5.59292999]
[1745976533187,0.30980851,1804.2,1804.1,0.05]
[1745976535790,0.30980851,1804.2,1804.1,5.59292999]
[1745976539497,0.30980851,1804.2,1804.1,7.16429739]
[1745976540075,4.602,1804.3,1804.2,5.54262276]
[1745976540676,0.33837721,1804.4,1804.3,6.30881557]
[1745976540898,0.33837721,1804.4,1804.3,7.88018297]
[1745976544008,0.33837721,1804.6,1804.4,5.54184411]
[1745976544373,0.30982117,1804.5,1804.4,5.54184411]
[1745976546880,0.33837721,1804.6,1804.5,5.5417013]
[1745976547779,0.6480424,1804.6,1804.5,5.5417013]
[1745976549084,0.33837721,1804.6,1804.5,7.9399687]
[1745976552178,23.7307,1805.0,1804.8,5.54063403]
[1745976552383,4.93737721,1805.0,1804.9,5.54047315]
[1745976552782,0.6478817,1805.0,1804.9,5.54047315]
[1745976553584,0.33837721,1805.0,1804.9,5.54047315]
[1745976555911,0.33837721,1805.2,1805.0,5.53993305]
[1745976558411,0.33837721,1805.2,1804.9,5.54027378]
[1745976558592,0.33837721,1805.2,1804.9,11.08055134]
[1745976559033,0.33837721,1805.2,1805.0,5.54010323]
[1745976559789,0.33837721,1805.2,1804.9,5.54027378]
[1745976561229,0.33837721,1805.2,1805.0,5.54006428]
[1745976561426,0.33837721,1805.2,1805.1,5.53985928]
[1745976562004,0.33837721,1805.2,1805.0,5.54006428]
[1745976562427,0.33837721,1805.2,1805.0,5.5400083]
[1745976565224,0.33837721,1805.2,1805.0,11.07997604]
[1745976565826,0.33837721,1805.2,1805.0,5.53996774]
[1745976566209,0.33837721,1805.2,1805.0,11.07995941]
[1745976566597,0.33837721,1805.2,1805.0,11.07992255]
[1745976567542,0.33837721,1805.2,1805.0,5.53995481]
[1745976568003,0.33837721,1805.2,1804.9,6.36536035]
[1745976568518,0.33837721,1805.2,1805.0,5.540151]
[1745976570326,0.33837721,1805.2,1805.0,11.08017624]
[1745976570529,0.33837721,1805.2,1805.1,5.53985928]
[1745976570826,0.64753677,1805.2,1805.1,5.53985928]
[1745976571698,0.30915956,1805.2,1805.1,9.93675648]
[1745976572030,0.33837721,1805.8,1805.7,5.53801849]
[1745976573103,5.3968,1806.0,1805.8,5.53744015]
[1745976573301,0.7727,1806.2,1805.9,5.53716612]
[1745976573529,4.68168493,1806.2,1805.9,5.53716612]
[1745976574108,1.68168493,1806.2,1805.9,5.53716612]
[1745976574301,4.68168493,1806.2,1805.8,5.53758424]
[1745976575094,4.68168493,1806.2,1805.8,11.07512671]
[1745976575300,4.68168493,1806.2,1805.8,5.53754247]
[1745976576214,4.11107721,1806.2,1805.8,5.53754247]
[1745976576530,1.11107721,1806.2,1805.9,5.53730122]
[1745976579117,0.7727,1806.2,1805.9,5.53730122]
[1745976580238,0.7727,1806.2,1805.9,5.53725132]
[1745976582426,0.7727,1806.2,1805.9,11.07436275]
[1745976583047,0.7727,1806.2,1805.9,5.53718085]
[1745976583655,0.7727,1806.2,1805.9,11.07440797]
[1745976584155,0.7727,1806.2,1805.9,5.53718085]
[1745976584752,0.7727,1806.2,1805.8,5.53750014]
[1745976584912,0.7727,1806.2,1805.9,5.53734257]
[1745976586255,5.3757,1806.3,1806.0,5.53698548]
[1745976588260,5.3757,1806.3,1806.1,5.53677494]
[1745976588866,5.3757,1806.3,1806.0,5.53688319]
[1745976590348,5.3757,1806.3,1806.0,11.07381074]
[1745976590648,5.3757,1806.3,1806.1,5.53678396]
[1745976590942,5.3757,1806.3,1806.1,5.53669217]
[1745976591326,5.3757,1806.3,1806.1,5.53658437]
[1745976591327,4.595,1806.3,1806.1,5.53658437]
[1745976593352,0.7688,1806.5,1806.2,5.53638098]
[1745976593756,0.7688,1806.5,1806.2,11.07270394]
[1745976593922,5.355,1806.6,1806.3,5.53595977]
[1745976595057,5.355,1806.6,1806.2,11.86648563]
[1745976595256,5.355,1806.6,1806.2,11.86639591]
[1745976596359,5.355,1806.6,1806.2,6.33006968]
[1745976596559,5.355,1806.6,1806.2,5.53626968]
[1745976598157,0.8242,1806.5,1805.9,2.3678674]
[1745976598325,0.8242,1806.5,1805.9,5.53722896]
[1745976599657,0.8242,1806.5,1805.8,5.53751086]
[1745976599860,0.8242,1806.5,1805.8,11.07503525]
[1745976600357,0.8096,1806.4,1805.7,6.33438652]
[1745976600555,0.8096,1806.4,1805.8,1.5713674]
[1745976600755,0.8096,1806.4,1805.9,5.53721714]
[1745976600929,1.19056,1806.4,1805.9,11.07445328]
[1745976601131,1.19056,1806.4,1806.0,5.53709194]
[1745976601365,1.19056,1806.4,1805.9,5.53721714]
[1745976601933,1.19056,1806.4,1805.9,11.07446122]
[1745976602144,1.19056,1806.4,1805.9,5.53721714]
[1745976602562,1.19056,1806.4,1805.9,11.07445281]
[1745976602866,1.19056,1806.4,1805.9,5.53721714]
[1745976603041,1.19056,1806.4,1805.9,11.07443839]
[1745976603241,1.19056,1806.4,1805.9,5.53721714]
[1745976603965,0.7571,1806.3,1805.9,5.53721714]
[1745976604931,0.7571,1806.3,1805.7,11.8722658]
[1745976605224,3.0,1806.1,1805.5,0.8054]
[1745976605337,3.0,1806.1,1805.2,9.27796214]
[1745976605338,1.0747,1806.0,1805.3,5.53906051]
[1745976605538,0.7747,1805.9,1805.4,5.53882246]
[1745976605768,0.7747,1805.9,1805.4,5.53872735]
[1745976605969,0.7747,1805.9,1805.6,5.53820658]
[1745976606142,0.7747,1805.9,1805.5,5.53858039]
[1745976607838,0.30974412,1805.8,1805.5,5.53858039]
[1745976608061,0.30974412,1805.8,1805.5,11.07707364]
[1745976608248,0.30974412,1805.8,1805.5,5.53849325]
[1745976608790,0.30974412,1805.7,1805.5,5.53849325]
[1745976609439,0.3,1806.0,1805.4,5.53884912]
[1745976609440,0.8189,1805.6,1805.4,5.53884912]
[1745976609754,0.8189,1805.6,1805.3,5.53909744]
[1745976609755,0.8189,1805.6,1805.3,5.53908661]
[1745976610068,0.8189,1805.6,1805.4,5.53892412]
[1745976610374,0.8189,1805.6,1805.4,5.53873444]
[1745976612273,0.8189,1805.6,1805.1,5.53965787]
[1745976612441,0.8038,1805.5,1805.1,5.53965787]
[1745976612634,1.11320361,1805.5,1805.1,5.53965787]
[1745976613683,0.30940361,1805.4,1805.2,5.53929345]
[1745976614587,0.30940361,1805.4,1805.1,5.53971867]
[1745976614952,0.7789,1805.3,1805.0,5.54000503]
[1745976615287,0.7789,1805.3,1805.1,5.53976359]
[1745976615788,0.7789,1805.3,1805.0,5.53995804]
[1745976615976,0.7789,1805.3,1804.9,5.54028597]
[1745976617187,0.7789,1805.3,1804.9,5.54025227]
[1745976617488,0.7789,1805.3,1805.0,5.54007607]
[1745976617684,0.7789,1805.3,1804.9,5.54025227]
[1745976618376,0.7789,1805.3,1805.0,5.54004516]
[1745976618789,0.7789,1805.3,1805.0,5.54000835]
[1745976618990,4.591,1805.4,1805.2,5.5395524]
[1745976619196,4.591,1805.4,1805.3,5.53924555]
[1745976624126,5.3808,1805.4,1805.2,5.53936775]
[1745976624789,5.3808,1805.4,1805.3,5.53924555]
[1745976624989,5.3808,1805.4,1805.2,5.53935095]
[1745976625185,4.591,1805.4,1805.3,5.53924555]
[1745976628230,0.7645,1805.6,1805.4,5.53890677]
[1745976628561,0.30948636,1805.5,1805.4,5.53890677]
[1745976629869,0.30948636,1805.5,1805.3,11.07827765]
[1745976630053,0.30948636,1805.5,1805.3,5.5390321]
[1745976630564,0.30948636,1805.5,1805.4,5.53893873]
[1745976631862,0.30948636,1805.5,1805.3,5.5390321]
[1745976632061,0.30948636,1805.5,1805.3,11.0780555]
[1745976632445,0.30948636,1805.5,1805.3,5.5390234]
[1745976632746,0.7657,1805.4,1805.2,5.53937361]
[1745976633556,0.30948636,1805.3,1805.2,5.53937361]
[1745976633953,0.30948636,1805.3,1805.0,5.53996518]
[1745976634154,0.30948636,1805.3,1805.0,11.07994765]
[1745976635260,0.30948636,1805.2,1805.1,5.53982762]
[1745976635691,0.30948636,1805.2,1805.0,5.53996518]
[1745976636195,0.8025,1805.1,1804.8,5.54062394]
[1745976636558,0.30948636,1805.0,1804.8,5.54062394]
[1745976637503,0.30948636,1805.0,1804.8,11.08122853]
[1745976637660,0.30948636,1805.0,1804.8,5.54060459]
[1745976637859,0.30948636,1805.0,1804.8,11.08121752]
[1745976638195,0.30948636,1805.0,1804.9,5.54047315]
[1745976640976,0.30948636,1805.2,1804.8,11.08117996]
[1745976641804,0.30948636,1805.2,1804.9,5.54042397]
[1745976642028,0.30948636,1805.1,1804.9,5.54042397]
[1745976642609,0.30948636,1805.0,1804.9,5.54042397]
[1745976643619,0.30948636,1805.2,1804.9,5.54042397]
[1745976644318,0.30948636,1805.1,1804.9,5.54042397]
[1745976645297,0.30948636,1805.0,1804.9,5.54027805]
[1745976645594,0.30948636,1805.0,1804.9,7.94224545]
[1745976645795,0.30948636,1805.0,1804.9,7.99764022]
[1745976646125,4.59,1805.6,1805.3,5.53907934]
[1745976646299,5.3996,1805.7,1805.5,5.53856126]
[1745976646654,0.30965865,1805.6,1805.5,5.53856126]
[1745976647313,0.30965865,1805.6,1805.4,11.07752022]
[1745976647509,0.30965865,1805.6,1805.5,5.53863195]
[1745976650558,0.30965865,1805.6,1805.4,5.53872485]
[1745976650741,0.30965865,1805.6,1805.5,5.53863195]
[1745976656760,4.59,1805.7,1805.5,5.53863195]
[1745976657271,4.59,1805.7,1805.6,5.53832521]
[1745976657649,4.59,1805.7,1805.5,5.53863195]
[1745976657871,4.59,1805.7,1805.5,5.53843177]
[1745976658349,4.59,1805.7,1805.5,11.07690888]
[1745976658549,4.59,1805.7,1805.6,5.53832521]
[1745976658854,4.59,1805.7,1805.5,5.53843177]
[1745976659061,4.89933456,1805.7,1805.5,11.07684216]
[1745976659667,0.30933456,1805.6,1805.5,5.53841039]
[1745976660461,4.59,1805.7,1805.5,5.53841039]
[1745976660962,5.12432,1805.7,1805.3,5.53904155]
[1745976661461,0.7976,1805.6,1805.3,11.07808]
[1745976661671,0.7976,1805.6,1805.4,5.53891018]
[1745976664167,1.13597721,1805.6,1805.4,5.53891018]
[1745976666999,1.13597721,1805.6,1805.3,11.07808506]
[1745976667504,1.13597721,1805.6,1805.4,5.53884908]
[1745976667810,1.13597721,1805.6,1805.3,5.53903845]
[1745976667966,1.13597721,1805.6,1805.3,5.53902707]
[1745976668396,1.76200693,1805.6,1805.3,5.53902707]
[1745976668592,1.10339887,1805.5,1805.1,5.53970213]
[1745976668798,0.794,1805.3,1805.1,5.53970213]
[1745976669284,5.382,1805.3,1804.8,5.54057511]
[1745976669466,0.30939887,1805.2,1804.9,5.54019067]
[1745976669877,0.30939887,1805.2,1804.9,11.08044326]
[1745976670297,0.30939887,1805.2,1804.9,5.54019067]
[1745976670798,1.13467721,1805.1,1804.8,5.54060595]
[1745976671014,0.7963,1804.9,1804.4,0.7923]
[1745976671182,5.72267721,1804.9,1804.5,5.54167954]
[1745976671370,6.32588482,1804.9,1804.5,5.54167954]
[1745976671571,6.32588482,1804.9,1804.4,5.5417943]
[1745976671767,0.30939887,1804.8,1804.5,5.54170021]
[1745976672302,0.771,1804.7,1804.4,5.54200476]
[1745976672488,0.771,1804.7,1804.3,5.54216273]
[1745976672801,0.771,1804.7,1804.3,11.08428604]
[1745976673018,0.771,1804.7,1804.3,11.08424602]
[1745976673183,0.771,1804.7,1804.3,5.54212271]
[1745976673390,0.8186,1804.6,1804.2,5.54243132]
[1745976674114,4.589,1804.5,1804.1,5.59268118]
[1745976674431,4.589,1804.5,1804.2,5.54247278]
[1745976674432,1.15667721,1804.4,1804.2,5.54247278]
[1745976678726,1.15667721,1804.4,1804.3,5.54231557]
[1745976678936,1.15667721,1804.4,1804.2,5.54242362]
[1745976679898,1.15667721,1804.4,1804.2,11.08485668]
[1745976680106,1.15667721,1804.4,1804.2,5.54242362]
[1745976683058,1.15667721,1804.4,1804.1,5.59271775]
[1745976683266,1.15667721,1804.4,1804.2,5.54260535]
[1745976686165,1.15667721,1804.4,1804.1,5.59271775]
[1745976686371,1.15667721,1804.4,1804.1,11.13545638]
[1745976686864,1.73124493,1804.4,1804.1,0.05]
[1745976688027,1.73124493,1804.4,1804.1,5.5928343]
[1745976688230,1.15667721,1804.4,1804.1,5.5928343]
[1745976689863,1.15667721,1804.4,1804.1,5.59277752]
[1745976690849,1.15667721,1804.4,1804.2,5.54246647]
[1745976690850,0.33837721,1804.4,1804.2,5.54246647]
[1745976691054,0.33837721,1804.4,1804.3,5.54231557]
[1745976691862,0.33837721,1804.4,1804.2,5.54246647]
[1745976692466,0.33837721,1804.4,1804.1,7.96133683]
[1745976692467,0.83111493,1804.4,1804.1,11.13548769]
[1745976692770,0.33837721,1804.4,1804.1,11.13548769]
[1745976693068,0.33837721,1804.4,1804.2,5.54257506]
[1745976693366,0.33837721,1804.4,1804.1,5.59273418]
[1745976693540,0.33837721,1804.4,1804.1,11.13546513]
[1745976693744,0.33837721,1804.4,1804.1,11.13543874]
[1745976694266,0.33837721,1804.4,1804.2,5.54261241]
[1745976697097,0.33837721,1804.4,1804.1,5.59270779]
[1745976697391,0.33837721,1804.4,1804.2,5.54260989]
[1745976698807,0.33837721,1804.4,1804.3,5.54231557]
[1745976699663,0.64803283,1804.4,1804.3,5.54231557]
[1745976701972,0.30965562,1804.4,1804.3,7.89288297]
[1745976702859,0.30965562,1804.5,1804.4,5.54200842]
[1745976705512,0.30965562,1804.5,1804.4,5.59742008]
[1745976705812,0.30965562,1804.5,1804.4,5.54200842]